[Event "Early-Titled-Tuesday-Blitz-February-27-2024"]
[Site "Chess.com"]
[Date "2024.02.27"]
[Round "2"]
[White "Abund"]
[Black "Fluffey"]
[Result "1/2-1/2"]
[WhiteElo "2740"]
[BlackElo "2525"]
[TimeControl "180+1"]
[EndTime "8:18:41 PST"]
[Termination "Game drawn by repetition"]

1. e4 {[%clk 0:02:59.3]} 1... c6 {[%clk 0:02:59.8]} 2. Nf3 {[%clk 0:02:55.7]}
2... d5 {[%clk 0:03:00.4]} 3. Nc3 {[%clk 0:02:55.1]} 3... dxe4 {[%clk 0:03:00]}
4. Nxe4 {[%clk 0:02:55.6]} 4... Nf6 {[%clk 0:03:00.5]} 5. Qe2 {[%clk 0:02:56.2]}
5... Na6 {[%clk 0:02:58.8]} 6. Nxf6+ {[%clk 0:02:46.9]} 6... gxf6 {[%clk
0:02:59.7]} 7. d4 {[%clk 0:02:44.5]} 7... h5 {[%clk 0:02:58.6]} 8. h4 {[%clk
0:02:33.3]} 8... Bg4 {[%clk 0:02:57.9]} 9. c3 {[%clk 0:02:33.1]} 9... Qd5 {[%clk
0:02:57.4]} 10. Bf4 {[%clk 0:02:10.4]} 10... O-O-O {[%clk 0:02:43]} 11. Qe3
{[%clk 0:02:06.8]} 11... Nc7 {[%clk 0:02:40.9]} 12. Be2 {[%clk 0:02:03.9]} 12...
Ne6 {[%clk 0:02:40.9]} 13. Bg3 {[%clk 0:01:45.7]} 13... Bh6 {[%clk 0:02:39.9]}
14. Qd3 {[%clk 0:01:45.7]} 14... Rhg8 {[%clk 0:02:29]} 15. Qc4 {[%clk
0:01:33.8]} 15... Bxf3 {[%clk 0:02:07.8]} 16. gxf3 {[%clk 0:01:33.6]} 16... Bf4
{[%clk 0:01:27.8]} 17. Qxd5 {[%clk 0:01:24.7]} 17... cxd5 {[%clk 0:01:26.7]} 18.
Bxf4 {[%clk 0:00:44.7]} 18... Nxf4 {[%clk 0:01:27.6]} 19. Kd2 {[%clk 0:00:39.7]}
19... Rg2 {[%clk 0:01:26.7]} 20. Ke3 {[%clk 0:00:35.1]} 20... e5 {[%clk
0:00:56.8]} 21. Rag1 {[%clk 0:00:31.7]} 21... Rdg8 {[%clk 0:00:54.9]} 22. Rxg2
{[%clk 0:00:31.2]} 22... Rxg2 {[%clk 0:00:55.8]} 23. Bf1 {[%clk 0:00:29.3]}
23... Rg8 {[%clk 0:00:54.9]} 24. a3 {[%clk 0:00:15.7]} 24... Kc7 {[%clk
0:00:54.7]} 25. Bd3 {[%clk 0:00:12.9]} 25... Kd6 {[%clk 0:00:53.2]} 26. Bf1
{[%clk 0:00:12]} 26... Ke6 {[%clk 0:00:31.1]} 27. Bd3 {[%clk 0:00:11.7]} 27...
b6 {[%clk 0:00:30.9]} 28. Bf1 {[%clk 0:00:11.3]} 28... Kf5 {[%clk 0:00:28.2]}
29. Bd3+ {[%clk 0:00:05.6]} 29... Nxd3 {[%clk 0:00:27.7]} 30. Kxd3 {[%clk
0:00:06.5]} 30... Kf4 {[%clk 0:00:27.9]} 31. dxe5 {[%clk 0:00:04.3]} 31... fxe5
{[%clk 0:00:27.1]} 32. Ke2 {[%clk 0:00:04.8]} 32... Rg2 {[%clk 0:00:25.1]} 33.
Rd1 {[%clk 0:00:05]} 33... Rh2 {[%clk 0:00:13.6]} 34. Rxd5 {[%clk 0:00:05.1]}
34... Rxh4 {[%clk 0:00:14.1]} 35. Rd7 {[%clk 0:00:05.1]} 35... f5 {[%clk
0:00:14.7]} 36. Rxa7 {[%clk 0:00:05.4]} 36... Rh1 {[%clk 0:00:14.2]} 37. Rb7
{[%clk 0:00:04.7]} 37... h4 {[%clk 0:00:13.7]} 38. Rxb6 {[%clk 0:00:05.2]} 38...
Kg5 {[%clk 0:00:12.5]} 39. Rb8 {[%clk 0:00:04.9]} 39... Rb1 {[%clk 0:00:09.3]}
40. b4 {[%clk 0:00:04.3]} 40... Rb2+ {[%clk 0:00:08]} 41. Ke3 {[%clk 0:00:04.8]}
41... Rc2 {[%clk 0:00:07.2]} 42. c4 {[%clk 0:00:04.6]} 42... Rxc4 {[%clk
0:00:07.1]} 43. b5 {[%clk 0:00:04.3]} 43... Rc3+ {[%clk 0:00:07.5]} 44. Ke2
{[%clk 0:00:04.6]} 44... Rxa3 {[%clk 0:00:08.4]} 45. b6 {[%clk 0:00:04.6]} 45...
Rb3 {[%clk 0:00:09]} 46. b7 {[%clk 0:00:04.8]} 46... Kf4 {[%clk 0:00:09.7]} 47.
Rh8 {[%clk 0:00:04.7]} 47... Rb2+ {[%clk 0:00:09.9]} 48. Kf1 {[%clk 0:00:05.1]}
48... Rxb7 {[%clk 0:00:10.4]} 49. Rxh4+ {[%clk 0:00:04.9]} 49... Kxf3 {[%clk
0:00:11]} 50. Rh3+ {[%clk 0:00:05.7]} 50... Kg4 {[%clk 0:00:11.3]} 51. Rg3+
{[%clk 0:00:06.1]} 51... Kf4 {[%clk 0:00:12]} 52. Ra3 {[%clk 0:00:06.7]} 52...
Rb2 {[%clk 0:00:12.4]} 53. Kg2 {[%clk 0:00:06.8]} 53... e4 {[%clk 0:00:12.9]}
54. Rh3 {[%clk 0:00:07.2]} 54... Kg4 {[%clk 0:00:13]} 55. Rg3+ {[%clk
0:00:07.5]} 55... Kf4 {[%clk 0:00:12.8]} 56. Rh3 {[%clk 0:00:08.1]} 56... Rc2
{[%clk 0:00:13.1]} 57. Rg3 {[%clk 0:00:08.3]} 57... Ke5 {[%clk 0:00:13.6]} 58.
Rh3 {[%clk 0:00:08.4]} 58... f4 {[%clk 0:00:13.9]} 59. Rh5+ {[%clk 0:00:08.8]}
59... Kd4 {[%clk 0:00:13.1]} 60. Rh4 {[%clk 0:00:09.4]} 60... Ke5 {[%clk
0:00:11.5]} 61. Rh5+ {[%clk 0:00:09.7]} 61... Kf6 {[%clk 0:00:11.9]} 62. Kg1
{[%clk 0:00:07.5]} 62... Kg6 {[%clk 0:00:08.8]} 63. Re5 {[%clk 0:00:07.4]} 63...
Rc4 {[%clk 0:00:07.7]} 64. Kg2 {[%clk 0:00:06.8]} 64... Kf6 {[%clk 0:00:08]} 65.
Ra5 {[%clk 0:00:07.1]} 65... Rc2 {[%clk 0:00:07.2]} 66. Kg1 {[%clk 0:00:07.6]}
66... Rb2 {[%clk 0:00:04.4]} 67. Rc5 {[%clk 0:00:07.7]} 67... Rb1+ {[%clk
0:00:01.8]} 68. Kg2 {[%clk 0:00:07.9]} 68... Rb2 {[%clk 0:00:02.7]} 69. Kg1
{[%clk 0:00:08.5]} 69... Ke6 {[%clk 0:00:03.6]} 70. Rh5 {[%clk 0:00:08.1]} 70...
Kf6 {[%clk 0:00:04.1]} 71. Rc5 {[%clk 0:00:08.2]} 1/2-1/2

[Event "Early-Titled-Tuesday-Blitz-February-27-2024"]
[Site "Chess.com"]
[Date "2024.02.27"]
[Round "2"]
[White "mertfelin"]
[Black "Winner_7777"]
[Result "0-1"]
[WhiteElo "2312"]
[BlackElo "2539"]
[TimeControl "180+1"]
[EndTime "8:18:41 PST"]
[Termination "Winner_7777 won by resignation"]

1. e4 {[%clk 0:03:00.4]} 1... c5 {[%clk 0:03:00]} 2. Nf3 {[%clk 0:03:01]} 2...
d6 {[%clk 0:03:00.5]} 3. d4 {[%clk 0:02:56.9]} 3... cxd4 {[%clk 0:03:01]} 4.
Nxd4 {[%clk 0:02:57.8]} 4... Nf6 {[%clk 0:03:01.6]} 5. Nc3 {[%clk 0:02:58.5]}
5... a6 {[%clk 0:03:01.9]} 6. Rg1 {[%clk 0:02:59]} 6... e5 {[%clk 0:03:01.6]} 7.
Nb3 {[%clk 0:02:58.5]} 7... h5 {[%clk 0:02:51.8]} 8. Be3 {[%clk 0:02:56.2]} 8...
Be6 {[%clk 0:02:51.7]} 9. h3 {[%clk 0:02:55.7]} 9... h4 {[%clk 0:02:12.1]} 10.
g4 {[%clk 0:02:56]} 10... hxg3 {[%clk 0:02:13]} 11. Rxg3 {[%clk 0:02:56.5]}
11... Nbd7 {[%clk 0:02:00.3]} 12. Qd2 {[%clk 0:02:48.3]} 12... Rc8 {[%clk
0:01:46.8]} 13. O-O-O {[%clk 0:02:44.9]} 13... Rxc3 {[%clk 0:01:46.4]} 14. Qxc3
{[%clk 0:02:40.2]} 14... Nxe4 {[%clk 0:01:46.8]} 15. Qd3 {[%clk 0:02:36.8]}
15... Nxg3 {[%clk 0:01:45.9]} 16. fxg3 {[%clk 0:02:37.7]} 16... d5 {[%clk
0:01:37]} 17. g4 {[%clk 0:02:37.6]} 17... d4 {[%clk 0:01:34.1]} 18. Bd2 {[%clk
0:02:35]} 18... g6 {[%clk 0:01:29.3]} 19. Kb1 {[%clk 0:02:34.2]} 19... Qc7
{[%clk 0:01:28.2]} 20. Bg2 {[%clk 0:02:32.8]} 20... Be7 {[%clk 0:01:19.8]} 21.
Ba5 {[%clk 0:02:28]} 21... b6 {[%clk 0:01:19.5]} 22. Bd2 {[%clk 0:02:27.1]}
22... b5 {[%clk 0:01:15.9]} 23. Ba5 {[%clk 0:02:26.1]} 23... Qc4 {[%clk
0:01:14.4]} 24. Qe4 {[%clk 0:02:23.2]} 24... O-O {[%clk 0:01:07.7]} 25. Bf1
{[%clk 0:02:19.1]} 25... Qd5 {[%clk 0:00:55.6]} 26. Qe1 {[%clk 0:02:11.1]} 26...
Nc5 {[%clk 0:00:51]} 27. Bd2 {[%clk 0:01:57]} 27... Rc8 {[%clk 0:00:48.2]} 28.
Rc1 {[%clk 0:01:54.1]} 28... Na4 {[%clk 0:00:28.5]} 29. Bd3 {[%clk 0:01:39.6]}
29... Kg7 {[%clk 0:00:20.7]} 30. h4 {[%clk 0:01:37.7]} 30... Rh8 {[%clk
0:00:17.8]} 31. h5 {[%clk 0:01:36.8]} 31... gxh5 {[%clk 0:00:18.5]} 32. gxh5
{[%clk 0:01:29]} 32... Rxh5 {[%clk 0:00:19.4]} 33. Qg3+ {[%clk 0:01:28.7]} 33...
Kf8 {[%clk 0:00:17.5]} 34. Rg1 {[%clk 0:01:29.1]} 34... Ke8 {[%clk 0:00:14.7]}
35. Qg8+ {[%clk 0:01:07.1]} 35... Kd7 {[%clk 0:00:14.1]} 36. Qb8 {[%clk
0:01:07.7]} 36... Rh1 {[%clk 0:00:14.1]} 37. Rxh1 {[%clk 0:01:05.2]} 37... Qxh1+
{[%clk 0:00:15]} 38. Nc1 {[%clk 0:01:05.9]} 38... Nc5 {[%clk 0:00:10.7]} 39.
Qa7+ {[%clk 0:01:05.5]} 39... Ke8 {[%clk 0:00:11.3]} 40. Qb8+ {[%clk 0:00:30.3]}
40... Kd7 {[%clk 0:00:07.7]} 41. Qa7+ {[%clk 0:00:08.8]} 41... Qb7 {[%clk
0:00:08.1]} 42. Qxb7+ {[%clk 0:00:06.6]} 42... Nxb7 {[%clk 0:00:09]} 43. Be4
{[%clk 0:00:07.5]} 43... Nc5 {[%clk 0:00:08.9]} 44. Ba8 {[%clk 0:00:07.6]} 44...
e4 {[%clk 0:00:09]} 45. Nb3 {[%clk 0:00:08]} 45... e3 {[%clk 0:00:08.6]} 46. Be1
{[%clk 0:00:07.8]} 46... Nxb3 {[%clk 0:00:07.4]} 47. axb3 {[%clk 0:00:08.7]}
47... f5 {[%clk 0:00:06.6]} 48. Bb7 {[%clk 0:00:08.7]} 48... f4 {[%clk
0:00:06.6]} 49. Bxa6 {[%clk 0:00:09.1]} 49... f3 {[%clk 0:00:06.5]} 50. Bxb5+
{[%clk 0:00:09.8]} 50... Kc7 {[%clk 0:00:05.8]} 51. Bg3+ {[%clk 0:00:09.8]}
51... Kb7 {[%clk 0:00:05.6]} 52. Kc1 {[%clk 0:00:09.8]} 52... Bb4 {[%clk
0:00:03.9]} 53. c3 {[%clk 0:00:10]} 53... dxc3 {[%clk 0:00:04.8]} 54. bxc3
{[%clk 0:00:10.9]} 54... Bxc3 {[%clk 0:00:05.1]} 55. Kc2 {[%clk 0:00:11.8]}
55... Bb4 {[%clk 0:00:04.2]} 56. Kd3 {[%clk 0:00:12.3]} 56... Bd2 {[%clk
0:00:03.5]} 57. Bf4 {[%clk 0:00:08.7]} 57... f2 {[%clk 0:00:02.8]} 58. Ke2
{[%clk 0:00:07.3]} 58... Bxb3 {[%clk 0:00:03.4]} 59. Bxe3 {[%clk 0:00:07.6]}
59... f1=Q+ {[%clk 0:00:03.5]} 60. Kxf1 {[%clk 0:00:07.9]} 60... Bxe3 {[%clk
0:00:04.4]} 61. Ke2 {[%clk 0:00:08.7]} 61... Bc5 {[%clk 0:00:04.9]} 62. Bd3
{[%clk 0:00:09]} 62... Kb6 {[%clk 0:00:05.3]} 63. Be4 {[%clk 0:00:09.6]} 63...
Ka5 {[%clk 0:00:05.8]} 64. Kd3 {[%clk 0:00:10.3]} 64... Kb4 {[%clk 0:00:06.5]}
65. Bf5 {[%clk 0:00:10.9]} 65... Ba2 {[%clk 0:00:06.4]} 66. Be4 {[%clk
0:00:11.1]} 66... Bb1+ {[%clk 0:00:06.3]} 67. Ke2 {[%clk 0:00:11.4]} 67... Bxe4
{[%clk 0:00:07]} 0-1

[Event "Early-Titled-Tuesday-Blitz-February-27-2024"]
[Site "Chess.com"]
[Date "2024.02.27"]
[Round "2"]
[White "Viacheslav92"]
[Black "vovachesss"]
[Result "1/2-1/2"]
[WhiteElo "2558"]
[BlackElo "2779"]
[TimeControl "180+1"]
[EndTime "8:18:45 PST"]
[Termination "Game drawn - insufficient material"]

1. d4 {[%clk 0:03:00.9]} 1... d6 {[%clk 0:02:58.9]} 2. c4 {[%clk 0:02:58.3]}
2... e5 {[%clk 0:02:59]} 3. dxe5 {[%clk 0:02:57.5]} 3... dxe5 {[%clk 0:02:59.9]}
4. Qxd8+ {[%clk 0:02:57.7]} 4... Kxd8 {[%clk 0:03:00.8]} 5. Nc3 {[%clk
0:02:58.1]} 5... Be6 {[%clk 0:03:01.2]} 6. e4 {[%clk 0:02:55.9]} 6... c6 {[%clk
0:03:01]} 7. Be3 {[%clk 0:02:54.9]} 7... Nd7 {[%clk 0:03:01.1]} 8. O-O-O {[%clk
0:02:55.5]} 8... Kc7 {[%clk 0:03:01.4]} 9. Nf3 {[%clk 0:02:49.9]} 9... f6 {[%clk
0:03:01.4]} 10. Nd2 {[%clk 0:02:49.4]} 10... Bc5 {[%clk 0:02:59.7]} 11. Bxc5
{[%clk 0:02:47.2]} 11... Nxc5 {[%clk 0:02:59.8]} 12. Be2 {[%clk 0:02:45.6]}
12... a5 {[%clk 0:02:58.7]} 13. Nb3 {[%clk 0:02:44.1]} 13... Nxb3+ {[%clk
0:02:30.7]} 14. axb3 {[%clk 0:02:45]} 14... Ne7 {[%clk 0:02:24.9]} 15. Na4
{[%clk 0:02:35.3]} 15... Rhd8 {[%clk 0:02:21.8]} 16. Kc2 {[%clk 0:02:33.7]}
16... Ng6 {[%clk 0:02:17.6]} 17. g3 {[%clk 0:02:32.9]} 17... Nf8 {[%clk
0:02:16.4]} 18. Kc3 {[%clk 0:02:21.8]} 18... b6 {[%clk 0:02:11.8]} 19. c5 {[%clk
0:02:20.5]} 19... b5 {[%clk 0:02:10.5]} 20. Nb6 {[%clk 0:02:19.2]} 20... Ra7
{[%clk 0:01:53.1]} 21. Rxd8 {[%clk 0:02:17.4]} 21... Kxd8 {[%clk 0:01:54]} 22.
Rd1+ {[%clk 0:02:16.9]} 22... Kc7 {[%clk 0:01:52.9]} 23. h4 {[%clk 0:02:12.3]}
23... Nd7 {[%clk 0:01:10.5]} 24. Nxd7 {[%clk 0:02:10.2]} 24... Bxd7 {[%clk
0:01:11.4]} 25. h5 {[%clk 0:01:49.3]} 25... h6 {[%clk 0:01:08.4]} 26. g4 {[%clk
0:01:45.7]} 26... Ra8 {[%clk 0:00:53.6]} 27. f3 {[%clk 0:01:44.9]} 27... Be6
{[%clk 0:00:52.2]} 28. Rd6 {[%clk 0:01:43.1]} 28... Bg8 {[%clk 0:00:40.8]} 29.
Rd1 {[%clk 0:01:43.3]} 29... b4+ {[%clk 0:00:34]} 30. Kc2 {[%clk 0:01:41.6]}
30... a4 {[%clk 0:00:34.9]} 31. Bc4 {[%clk 0:01:23.2]} 31... Bxc4 {[%clk
0:00:27.4]} 32. bxc4 {[%clk 0:01:23.3]} 32... Ra5 {[%clk 0:00:27.8]} 33. b3
{[%clk 0:01:19.9]} 33... a3 {[%clk 0:00:12.1]} 34. Kb1 {[%clk 0:00:52.2]} 34...
Rxc5 {[%clk 0:00:12.1]} 35. Ka2 {[%clk 0:00:51.9]} 35... Ra5 {[%clk 0:00:12.8]}
36. Rd2 {[%clk 0:00:51.4]} 36... Ra8 {[%clk 0:00:12.9]} 37. Rc2 {[%clk
0:00:41.9]} 37... Rd8 {[%clk 0:00:09.1]} 38. c5 {[%clk 0:00:42.2]} 38... Rd3
{[%clk 0:00:09.1]} 39. Rc4 {[%clk 0:00:42]} 39... Rxf3 {[%clk 0:00:07]} 40. Rxb4
{[%clk 0:00:42.2]} 40... Rf4 {[%clk 0:00:04.3]} 41. Ra4 {[%clk 0:00:39]} 41...
Rxg4 {[%clk 0:00:04.2]} 42. Ra7+ {[%clk 0:00:39.1]} 42... Kb8 {[%clk 0:00:02.9]}
43. Rf7 {[%clk 0:00:37]} 43... Rxe4 {[%clk 0:00:02.8]} 44. Rxg7 {[%clk
0:00:36.7]} 44... Rf4 {[%clk 0:00:02.7]} 45. Kxa3 {[%clk 0:00:33.6]} 45... e4
{[%clk 0:00:03.4]} 46. Re7 {[%clk 0:00:33.9]} 46... f5 {[%clk 0:00:03.7]} 47.
Ka4 {[%clk 0:00:34.4]} 47... Rf3 {[%clk 0:00:03.5]} 48. Ka5 {[%clk 0:00:34.7]}
48... Rd3 {[%clk 0:00:02.5]} 49. b4 {[%clk 0:00:30.4]} 49... e3 {[%clk
0:00:02.5]} 50. Kb6 {[%clk 0:00:29.5]} 50... Kc8 {[%clk 0:00:03.1]} 51. Kxc6
{[%clk 0:00:28.8]} 51... f4 {[%clk 0:00:03.7]} 52. b5 {[%clk 0:00:27]} 52... Kd8
{[%clk 0:00:04]} 53. Re4 {[%clk 0:00:19.4]} 53... f3 {[%clk 0:00:04.3]} 54. b6
{[%clk 0:00:20.3]} 54... f2 {[%clk 0:00:04.4]} 55. b7 {[%clk 0:00:12.5]} 55...
Rb3 {[%clk 0:00:04.7]} 56. Rxe3 {[%clk 0:00:11.6]} 56... Rxb7 {[%clk 0:00:05.2]}
57. Rf3 {[%clk 0:00:11.2]} 57... Rb2 {[%clk 0:00:04.1]} 58. Kd6 {[%clk
0:00:09.9]} 58... Rd2+ {[%clk 0:00:04]} 59. Ke6 {[%clk 0:00:08.8]} 59... Kc7
{[%clk 0:00:04.2]} 60. Kf6 {[%clk 0:00:08.6]} 60... Kc6 {[%clk 0:00:04.5]} 61.
Kg6 {[%clk 0:00:08.7]} 61... Kxc5 {[%clk 0:00:05.1]} 62. Kxh6 {[%clk 0:00:09.1]}
62... Kd4 {[%clk 0:00:05.8]} 63. Kg7 {[%clk 0:00:08.2]} 63... Ke4 {[%clk
0:00:06.5]} 64. Rxf2 {[%clk 0:00:08.3]} 64... Rxf2 {[%clk 0:00:06.4]} 65. h6
{[%clk 0:00:08.8]} 65... Rg2+ {[%clk 0:00:07]} 66. Kf8 {[%clk 0:00:08.6]} 66...
Rf2+ {[%clk 0:00:04.2]} 67. Kg8 {[%clk 0:00:08.3]} 67... Rg2+ {[%clk 0:00:03.4]}
68. Kf8 {[%clk 0:00:08.6]} 68... Kf5 {[%clk 0:00:02.9]} 69. h7 {[%clk
0:00:08.3]} 69... Rh2 {[%clk 0:00:02.7]} 70. Kg8 {[%clk 0:00:08.2]} 70... Kg6
{[%clk 0:00:02.5]} 71. h8=Q {[%clk 0:00:07.6]} 71... Rxh8+ {[%clk 0:00:03.1]}
72. Kxh8 {[%clk 0:00:08.5]} 1/2-1/2

[Event "Early-Titled-Tuesday-Blitz-February-27-2024"]
[Site "Chess.com"]
[Date "2024.02.27"]
[Round "2"]
[White "RobertoJBM"]
[Black "FARIZA2018"]
[Result "1-0"]
[WhiteElo "2852"]
[BlackElo "2581"]
[TimeControl "180+1"]
[EndTime "8:18:49 PST"]
[Termination "RobertoJBM won by resignation"]

1. d4 {[%clk 0:03:00.9]} 1... Nf6 {[%clk 0:03:00]} 2. Nf3 {[%clk 0:02:59]} 2...
d5 {[%clk 0:03:00]} 3. e3 {[%clk 0:02:57.8]} 3... c5 {[%clk 0:02:58]} 4. c3
{[%clk 0:02:57.6]} 4... Nc6 {[%clk 0:02:57.7]} 5. Nbd2 {[%clk 0:02:57.3]} 5...
e6 {[%clk 0:02:55.3]} 6. Bd3 {[%clk 0:02:56.5]} 6... Be7 {[%clk 0:02:54.4]} 7.
O-O {[%clk 0:02:54.6]} 7... O-O {[%clk 0:02:54.4]} 8. dxc5 {[%clk 0:02:54.7]}
8... Bxc5 {[%clk 0:02:54.4]} 9. e4 {[%clk 0:02:54.8]} 9... e5 {[%clk 0:02:14.7]}
10. b4 {[%clk 0:02:51.9]} 10... Bd6 {[%clk 0:01:48]} 11. a3 {[%clk 0:02:44.6]}
11... dxe4 {[%clk 0:01:29.3]} 12. Nxe4 {[%clk 0:02:44.2]} 12... Nxe4 {[%clk
0:01:28.6]} 13. Bxe4 {[%clk 0:02:45.1]} 13... h6 {[%clk 0:01:22.7]} 14. c4
{[%clk 0:02:36.4]} 14... Bg4 {[%clk 0:01:18.4]} 15. h3 {[%clk 0:02:33.1]} 15...
Bh5 {[%clk 0:01:15.1]} 16. c5 {[%clk 0:02:27.4]} 16... Bc7 {[%clk 0:01:13.9]}
17. Bb2 {[%clk 0:02:17.7]} 17... Qf6 {[%clk 0:01:05.1]} 18. Re1 {[%clk
0:02:00.3]} 18... Rad8 {[%clk 0:01:05]} 19. Qb3 {[%clk 0:01:59.6]} 19... Nd4
{[%clk 0:01:02.3]} 20. Nxd4 {[%clk 0:01:50.8]} 20... exd4 {[%clk 0:01:01.9]} 21.
Bxb7 {[%clk 0:01:44.4]} 21... Qf4 {[%clk 0:00:57.1]} 22. g3 {[%clk 0:01:34.8]}
22... Qg5 {[%clk 0:00:53.8]} 23. h4 {[%clk 0:01:33.7]} 23... Qg4 {[%clk
0:00:51.3]} 24. Bg2 {[%clk 0:01:28.1]} 24... d3 {[%clk 0:00:47.3]} 25. Re4
{[%clk 0:00:40.9]} 25... Qg6 {[%clk 0:00:43.6]} 26. Qc3 {[%clk 0:00:40]} 26...
d2 {[%clk 0:00:41.4]} 27. Bf3 {[%clk 0:00:15.9]} 27... Bxf3 {[%clk 0:00:35.5]}
28. Qxf3 {[%clk 0:00:16.8]} 28... d1=Q+ {[%clk 0:00:35.6]} 29. Rxd1 {[%clk
0:00:16.6]} 29... Rxd1+ {[%clk 0:00:36.1]} 30. Kg2 {[%clk 0:00:17.5]} 30... Qxe4
{[%clk 0:00:36.5]} 31. Qxe4 {[%clk 0:00:17.1]} 31... Rfd8 {[%clk 0:00:31.2]} 32.
Qb7 {[%clk 0:00:13.4]} 32... R1d7 {[%clk 0:00:29.6]} 33. Qc6 {[%clk 0:00:09.6]}
33... Bb8 {[%clk 0:00:26.2]} 34. Bc1 {[%clk 0:00:10]} 34... Rd1 {[%clk
0:00:25.9]} 35. Be3 {[%clk 0:00:09.1]} 35... Be5 {[%clk 0:00:25.6]} 36. Qb7
{[%clk 0:00:07.9]} 36... R1d7 {[%clk 0:00:21.1]} 37. Qe4 {[%clk 0:00:08.1]}
37... Bf6 {[%clk 0:00:19.7]} 38. a4 {[%clk 0:00:08.3]} 38... Re7 {[%clk
0:00:18.8]} 39. Qc4 {[%clk 0:00:07.8]} 39... Be5 {[%clk 0:00:08.4]} 40. b5
{[%clk 0:00:07.9]} 40... Rc8 {[%clk 0:00:07.1]} 41. a5 {[%clk 0:00:07.9]} 41...
g6 {[%clk 0:00:04.6]} 42. c6 {[%clk 0:00:07.2]} 42... Re6 {[%clk 0:00:03.3]} 43.
Bxa7 {[%clk 0:00:05.2]} 43... Bd6 {[%clk 0:00:02.6]} 44. Bc5 {[%clk 0:00:04.8]}
44... Bc7 {[%clk 0:00:02.4]} 45. Bb4 {[%clk 0:00:03.4]} 45... Bd8 {[%clk
0:00:02.4]} 46. Bc3 {[%clk 0:00:03.9]} 46... Bc7 {[%clk 0:00:02.4]} 47. Qd4
{[%clk 0:00:04.3]} 47... Kf8 {[%clk 0:00:02.5]} 48. Qg7+ {[%clk 0:00:04.3]}
48... Ke8 {[%clk 0:00:02.3]} 49. Qxh6 {[%clk 0:00:05.2]} 49... Bd6 {[%clk
0:00:01.3]} 50. Qh8+ {[%clk 0:00:05.4]} 50... Bf8 {[%clk 0:00:01.6]} 51. Qd4
{[%clk 0:00:06.3]} 51... Rd6 {[%clk 0:00:01.7]} 52. Qc4 {[%clk 0:00:06.7]} 52...
Re6 {[%clk 0:00:01.7]} 53. a6 {[%clk 0:00:07.2]} 53... Bd6 {[%clk 0:00:01.8]}
54. Bd4 {[%clk 0:00:07.7]} 54... Bc7 {[%clk 0:00:02.1]} 55. a7 {[%clk
0:00:08.2]} 55... Ra8 {[%clk 0:00:02.6]} 56. b6 {[%clk 0:00:08.2]} 56... Bxb6
{[%clk 0:00:03.1]} 57. Bxb6 {[%clk 0:00:09.1]} 57... Rc8 {[%clk 0:00:03.4]} 58.
c7 {[%clk 0:00:09.5]} 58... Rxb6 {[%clk 0:00:03.5]} 59. a8=Q {[%clk 0:00:09.1]}
59... Rxa8 {[%clk 0:00:03.8]} 60. Qe4+ {[%clk 0:00:09.7]} 60... Kd7 {[%clk
0:00:03.7]} 61. Qxa8 {[%clk 0:00:10.6]} 61... Kxc7 {[%clk 0:00:04.1]} 62. Qa7+
{[%clk 0:00:11.2]} 62... Rb7 {[%clk 0:00:04.5]} 63. Qc5+ {[%clk 0:00:10.8]}
63... Kd7 {[%clk 0:00:04.9]} 64. Qe3 {[%clk 0:00:11.7]} 64... Rb6 {[%clk
0:00:04.6]} 65. h5 {[%clk 0:00:11.9]} 65... Re6 {[%clk 0:00:04.6]} 66. h6 {[%clk
0:00:10.4]} 66... Rxe3 {[%clk 0:00:04.7]} 67. fxe3 {[%clk 0:00:11.3]} 1-0